bitfinex/quotes_ETHUSD_20250331
["timestamp","ask_amount","ask_price","bid_price","bid_amount"]
[1743415113701,3.69801336,1789.9,1789.4,5.692]
[1743415113886,1.5101,1790.0,1789.4,5.692]
[1743415113887,1.5101,1790.0,1789.6,5.58757]
[1743415114092,1.5101,1790.0,1789.7,5.58747]
[1743415114434,5.29161336,1790.7,1790.2,5.58572]
[1743415114600,5.57077921,1790.7,1790.3,5.58538]
[1743415114790,5.57077921,1790.7,1790.2,5.58595]
[1743415114990,7.10327244,1790.7,1790.3,5.58554]
[1743415115190,7.10327244,1790.7,1790.2,5.58576]
[1743415115191,3.69801336,1790.5,1790.1,11.27821]
[1743415115420,3.69801336,1790.5,1790.1,11.27804]
[1743415115720,3.69801336,1790.5,1790.2,5.58596]
[1743415116513,3.69801336,1790.5,1790.2,5.58595]
[1743415116721,3.69801336,1790.5,1790.1,16.86408]
[1743415117023,3.69801336,1790.5,1790.2,5.58585]
[1743415117324,3.69801336,1790.5,1790.2,11.17161]
[1743415117489,3.0,1790.6,1790.3,5.58559]
[1743415117840,2.01060031,1790.7,1790.4,5.58521]
[1743415117999,10.59507031,1790.7,1790.3,5.58563]
[1743415118333,19.87774367,1790.7,1790.3,5.58563]
[1743415118634,3.0,1790.4,1790.1,12.964488]
[1743415118841,3.0,1790.4,1790.2,5.58596]
[1743415119439,2.0,1790.4,1790.1,18.550658]
[1743415119805,2.0,1790.4,1790.1,18.550608]
[1743415120010,2.0,1790.4,1790.2,5.58596]
[1743415120403,2.0,1790.4,1790.1,18.550578]
[1743415120608,2.0,1790.4,1790.1,12.964488]
[1743415121142,7.58536,1790.4,1790.1,7.378408]
[1743415121342,2.0,1790.4,1790.1,7.272468]
[1743415121509,2.0,1790.4,1790.2,5.5858]
[1743415121823,2.0,1790.4,1790.1,16.85832]
[1743415122230,3.0,1790.5,1790.2,5.58592]
[1743415123342,3.0,1790.5,1790.2,5.58583]
[1743415123640,3.0,1790.5,1790.3,5.58559]
[1743415123842,3.0,1790.6,1790.3,11.17108]
[1743415124010,5.01060031,1790.7,1790.3,1.117108]
[1743415124217,5.58487,1790.6,1790.4,5.684]
[1743415125729,12.69946367,1790.7,1790.4,5.684]
[1743415125929,5.58473,1790.6,1790.4,5.684]
[1743415126348,9.28304336,1790.5,1790.4,5.684]
[1743415126514,3.69801336,1790.5,1790.4,5.684]
[1743415127034,9.28304336,1790.5,1790.4,5.684]
[1743415128524,3.69801336,1790.5,1790.4,5.684]
[1743415128742,8.58474,1790.6,1790.4,5.684]
[1743415128945,8.58474,1790.6,1790.4,5.68013084]
[1743415129847,14.16966,1790.6,1790.4,5.68013084]
[1743415130449,5.58503,1790.5,1790.4,5.68013084]
[1743415131851,8.58474,1790.6,1790.4,5.68013084]
[1743415132352,12.28219336,1790.8,1790.4,5.68013084]
[1743415132654,8.58432,1790.8,1790.4,11.98572392]
[1743415132855,14.16869,1790.8,1790.4,6.30559308]
[1743415133024,8.58432,1790.8,1790.5,5.681]
[1743415133226,5.5845,1790.7,1790.5,5.681]
[1743415133428,14.16871,1790.8,1790.5,5.681]
[1743415133661,5.58447,1790.7,1790.5,5.681]
[1743415135774,8.58413,1790.8,1790.5,11.26592]
[1743415135973,10.85672336,1790.9,1790.6,5.58462]
[1743415136168,9.28136336,1791.1,1790.7,5.58423]
[1743415136374,9.28136336,1791.1,1790.5,6.807592]
[1743415136375,3.0,1790.9,1790.6,5.58471]
[1743415136671,8.58389,1790.9,1790.6,5.58471]
[1743415136856,7.17558,1790.8,1790.7,5.68]
[1743415137061,5.58458,1790.7,1790.5,5.68]
[1743415137465,3.0,1790.6,1790.5,5.68]
[1743415138251,3.0,1790.6,1790.1,30.27626]
[1743415138252,3.0,1790.6,1790.2,5.68]
[1743415138451,5.58535,1790.4,1790.2,5.68]
[1743415138771,3.0,1790.4,1790.2,5.68]
[1743415139173,8.5854,1790.4,1790.2,5.68]
[1743415139773,3.0,1790.4,1790.2,5.68]
[1743415140077,5.58486,1790.6,1790.3,5.58565]
[1743415140376,5.58486,1790.6,1790.3,11.1712]
[1743415140377,3.0,1790.6,1790.3,11.1712]
[1743415140580,3.0,1790.6,1790.3,11.17108]
[1743415140743,3.0,1790.6,1790.2,12.392526]
[1743415140947,3.0,1790.7,1790.3,1.5031]
[1743415141174,5.58422,1790.8,1790.4,5.58523]
[1743415141376,5.58395,1790.9,1790.5,5.58492]
[1743415141568,5.58395,1790.9,1790.6,5.679]
[1743415141753,3.0,1790.8,1790.6,5.679]
[1743415142277,1.5047,1791.5,1790.7,1.6195]
[1743415142455,3.69801336,1791.4,1790.8,11.31891635]
[1743415142661,11.16543,1791.3,1790.9,5.58366]
[1743415143051,4.2182847,1791.4,1790.9,5.58366]
[1743415143052,11.16468,1791.4,1791.0,5.58335]
[1743415143375,3.0,1791.4,1791.1,5.58301]
[1743415143577,5.48983411,1791.5,1790.8,6.97284164]
[1743415143879,5.58257,1791.3,1791.0,5.58346]
[1743415144173,5.58248,1791.4,1791.0,5.58346]
[1743415144174,8.58232,1791.4,1791.1,11.16601]
[1743415144380,5.58173,1791.6,1791.2,16.84449]
[1743415144549,3.69801336,1791.9,1791.6,5.58155]
[1743415144755,9.27886336,1791.9,1791.6,5.678]
[1743415145447,5.58129,1791.7,1791.6,5.678]
[1743415145644,10.12709,1791.7,1791.6,5.678]
[1743415145848,7.12709,1791.7,1791.6,5.678]
[1743415146080,5.5808,1791.9,1791.6,5.678]
[1743415146277,9.27838336,1792.0,1791.6,13.992846]
[1743415146472,8.58068,1791.9,1791.6,13.992846]
[1743415146669,3.0,1791.9,1791.6,13.992736]
[1743415147057,3.0,1791.9,1791.6,13.992706]
[1743415147258,8.58076,1791.9,1791.6,13.992766]
[1743415147761,14.16163,1791.9,1791.6,8.411276]
[1743415148082,3.0,1791.7,1791.6,5.677]
[1743415148287,8.58139,1791.7,1791.6,5.677]
[1743415148485,8.58139,1791.7,1791.4,1.6073]
[1743415148687,5.58162,1791.6,1791.4,1.6073]
[1743415148892,8.58139,1791.7,1791.5,5.677]
[1743415149095,3.0,1791.7,1791.5,5.677]
[1743415149280,3.0,1791.7,1791.4,5.677]
[1743415149586,3.0,1791.7,1791.5,5.58191]
[1743415149779,5.58108,1791.8,1791.5,7.22881]
[1743415149780,3.0,1791.8,1791.5,7.22881]
[1743415150162,3.0,1791.9,1791.6,5.58157]
[1743415150363,3.0,1791.9,1791.5,7.22879]
[1743415150364,8.5807,1791.9,1791.5,12.81068]
[1743415150556,8.5807,1791.9,1791.6,5.58156]
[1743415150755,3.69801336,1791.8,1791.3,7.19371]
[1743415150961,11.1628,1791.7,1791.4,5.676]
[1743415151271,5.58129,1791.7,1791.4,5.676]
[1743415151471,5.58129,1791.7,1791.4,11.25816]
[1743415151786,3.0,1791.7,1791.4,11.25811]
[1743415151989,3.69801336,1791.8,1791.4,5.676]
[1743415152195,5.58173,1791.6,1791.3,7.19361]
[1743415152414,8.58208,1791.5,1791.1,7.11329]
[1743415152584,8.58208,1791.5,1791.2,5.73182224]
[1743415152782,12.28028336,1791.4,1791.0,6.70017]
[1743415152987,5.58284,1791.2,1791.1,5.676]
[1743415153295,5.58284,1791.2,1791.0,5.676]
[1743415153296,3.0,1791.1,1791.0,5.676]
[1743415155190,5.58353,1791.0,1790.7,37.80029]
[1743415155390,5.58353,1791.0,1790.8,5.675]
[1743415155604,3.0,1791.3,1791.0,5.58347]
[1743415155915,3.0,1791.3,1791.0,5.63918542]
[1743415156218,5.58301,1791.2,1790.9,1.5947]
[1743415156522,5.5846,1790.7,1790.5,5.675]
[1743415156693,5.58472,1790.6,1790.5,5.675]
[1743415157299,3.0,1791.0,1790.7,5.58427]
[1743415157490,3.0,1791.0,1790.8,5.584]
[1743415157701,3.0,1791.0,1790.7,5.58436]
[1743415157883,8.5835,1791.0,1790.7,5.58436]
[1743415158413,8.5835,1791.0,1790.6,7.75239]
[1743415158592,5.58378,1790.9,1790.7,0.775239]
[1743415159099,3.0,1790.7,1790.6,1.6178]
[1743415159302,5.58464,1790.7,1790.4,7.291]
[1743415159482,3.0,1790.7,1790.4,12.87614]
[1743415159681,12.28152336,1791.0,1790.6,5.58472]
[1743415159925,8.58387,1790.9,1790.6,0.613472]
[1743415160216,3.0,1790.9,1790.4,1.616]
[1743415160509,3.0,1790.7,1790.5,5.675]
[1743415160717,8.58446,1790.7,1790.5,5.675]
[1743415160900,9.28273336,1790.6,1790.5,5.675]
[1743415161102,9.28279336,1790.6,1790.2,20.08581]
[1743415161294,4.5216,1790.7,1790.3,7.594091]
[1743415161494,8.5852,1790.5,1790.3,2.008581]
[1743415161697,14.17048,1790.5,1790.1,7.22543]
[1743415162005,14.17048,1790.5,1790.3,5.675]
[1743415162210,14.17042,1790.5,1790.3,5.675]
[1743415162416,8.58534,1790.4,1790.3,5.675]
[1743415162583,5.58602,1790.2,1790.1,5.676]
[1743415163399,8.5859,1790.3,1790.1,5.676]
[1743415163600,3.0,1790.3,1790.1,10.915]
[1743415163818,3.0,1790.3,1790.1,5.676]
[1743415163819,5.58596,1790.2,1790.1,5.676]
[1743415164211,5.58588,1790.3,1790.1,5.676]
[1743415164941,10.91020336,1790.5,1790.2,5.58596]
[1743415165114,3.0,1790.4,1790.1,11.26214]
[1743415165318,3.0,1790.4,1790.1,15.609754]
[1743415165518,3.0,1790.4,1790.2,7.21266]
[1743415165919,3.0,1790.4,1790.2,1.6268]
[1743415166611,8.58565,1790.3,1790.2,1.6268]
[1743415166811,8.58565,1790.3,1790.1,5.676]
[1743415167132,3.0,1790.3,1790.1,15.05117]
[1743415167450,3.0,1790.3,1790.2,5.58596]
[1743415168130,5.58516,1790.5,1790.2,5.58596]
[1743415168303,5.58516,1790.5,1790.2,5.64181029]
[1743415168500,5.58516,1790.5,1790.2,5.58596]
[1743415169046,1.6595,1790.7,1790.5,5.58497]
[1743415169342,3.0,1790.8,1790.6,5.676]
[1743415169521,8.5841,1790.8,1790.6,5.676]
[1743415170316,14.16836,1790.8,1790.6,5.676]
[1743415170515,8.5841,1790.8,1790.6,5.676]
[1743415171360,8.5844,1790.7,1790.6,5.676]
[1743415172456,3.0,1790.7,1790.6,5.676]
[1743415172674,3.0,1790.7,1790.3,1.5462]
[1743415172829,11.16995,1790.6,1790.5,5.676]
[1743415173024,5.58534,1790.4,1790.3,5.676]
[1743415173226,11.17037,1790.5,1790.3,5.676]
[1743415173536,5.58514,1790.5,1790.3,5.676]
[1743415174322,11.17033,1790.5,1790.3,5.676]
[1743415174661,5.58534,1790.4,1790.3,5.676]
[1743415175255,8.58534,1790.4,1790.3,5.676]
[1743415176154,5.58607,1790.2,1790.1,5.676]
[1743415176961,5.58579,1790.3,1790.1,5.676]
[1743415177349,8.58535,1790.4,1790.1,12.946957]
[1743415177762,3.0,1790.4,1790.1,12.947037]
[1743415177939,3.0,1790.3,1790.1,7.360887]
[1743415178263,5.58596,1790.2,1790.1,5.676]
[1743415179248,8.58633,1790.1,1789.8,5.676]
[1743415179448,8.58633,1790.1,1789.8,11.26312]
[1743415179679,14.17276,1790.1,1789.8,11.26312]
[1743415179877,8.58633,1790.1,1789.8,11.26312]
[1743415180078,3.69801336,1790.0,1789.5,37.81312]
[1743415180277,3.69801336,1789.8,1789.5,37.9]
[1743415180465,5.58726,1789.8,1789.5,43.48805]
[1743415181177,10.12091,1789.9,1789.6,5.58783]
[1743415181383,4.534,1789.9,1789.5,43.48805]
[1743415181554,5.5873,1789.8,1789.5,43.48805]
[1743415181754,5.5873,1789.8,1789.5,48.3957]
[1743415182155,5.5873,1789.8,1789.5,48.39579]
[1743415183379,5.5873,1789.8,1789.5,42.80765]
[1743415183683,5.5873,1789.8,1789.5,37.9]
[1743415183897,11.1747,1789.8,1789.5,37.9]
[1743415184060,11.1747,1789.8,1789.5,32.225]
[1743415184261,11.1747,1789.8,1789.6,5.676]
[1743415184692,5.58752,1789.7,1789.6,5.676]
[1743415185494,8.58752,1789.7,1789.6,5.676]
[1743415186395,5.58661,1790.0,1789.6,15.05394]
[1743415186689,8.58665,1790.0,1789.7,5.58742]
[1743415186896,8.58665,1790.0,1789.8,14.5]
[1743415187074,5.58598,1790.2,1789.9,5.58673]
[1743415187397,5.58598,1790.2,1790.0,6.234673]
[1743415187595,5.58598,1790.2,1790.0,5.676]
[1743415188394,8.58797,1789.6,1789.0,1.6321]
[1743415188596,12.28598336,1789.6,1789.1,5.58912]
[1743415188894,17.87402336,1789.6,1789.2,0.558912]
[1743415189065,5.58815,1789.5,1789.3,5.676]
[1743415189259,3.69801336,1789.4,1789.3,5.676]
[1743415190069,9.28647336,1789.4,1789.3,5.676]
[1743415190302,9.28647336,1789.4,1789.0,7.3081]
[1743415190607,14.87512336,1789.4,1789.0,14.187596]
[1743415190907,9.28712336,1789.2,1789.0,6.965796]
[1743415191069,9.28712336,1789.2,1789.0,5.676]
[1743415191283,9.28712336,1789.2,1789.0,6.226]
[1743415191811,9.28712336,1789.2,1788.8,7.21898]
[1743415192014,14.87640336,1789.2,1789.0,5.676]
[1743415192180,3.0,1789.1,1788.8,1.6288]
[1743415192382,3.0,1789.1,1788.9,5.676]
[1743415193503,9.28772336,1789.0,1788.8,7.3058]
[1743415194095,3.69801336,1789.0,1788.8,7.3058]
[1743415194311,9.28782336,1789.0,1788.8,7.3058]
[1743415194633,9.28790336,1789.0,1788.8,7.3058]
[1743415194819,9.28790336,1789.0,1788.8,7.3048]
[1743415195022,9.28790336,1789.0,1788.8,5.676]
[1743415195996,9.28790336,1789.0,1788.7,6.227]
[1743415196633,3.69801336,1788.8,1788.6,46.734]
[1743415196940,3.69801336,1788.8,1788.6,32.234]
[1743415197142,3.0,1789.1,1788.8,1.606]
[1743415197306,3.0,1789.1,1788.9,20.177]
[1743415197721,3.24061794,1789.0,1788.9,20.177]
[1743415199623,11.17842,1789.2,1788.9,20.177]
[1743415199624,3.24061794,1789.2,1789.0,5.58966]
[1743415199832,3.24061794,1789.2,1789.0,5.5896]
[1743415200429,3.24061794,1789.2,1789.0,0.55]
[1743415200629,8.82980794,1789.2,1788.9,14.004341]
[1743415200836,3.24061794,1789.0,1788.9,14.554341]
[1743415201003,3.24061794,1789.0,1788.9,29.054341]
[1743415201432,3.0,1789.3,1789.1,5.58926]
[1743415201636,3.66675477,1789.6,1789.3,5.58877]
[1743415201814,14.84260477,1789.6,1789.3,5.678]
[1743415202138,14.84262477,1789.6,1789.3,5.678]
[1743415202436,1.6383,1789.8,1789.3,5.678]
[1743415202437,3.24061794,1789.4,1789.3,5.678]
[1743415202613,8.82907794,1789.4,1789.3,5.678]
[1743415203134,5.58895,1789.3,1789.1,5.677]
[1743415203452,5.58847,1789.4,1789.1,5.677]
[1743415203619,8.82908794,1789.4,1789.1,5.677]
[1743415203805,8.82908794,1789.4,1788.1,1.6489]
[1743415203806,5.59012,1788.9,1788.1,1.6489]
[1743415204006,6.48123588,1789.2,1788.6,1.6489]
[1743415204007,3.24061794,1788.7,1788.6,1.6489]
[1743415204439,8.83088794,1788.9,1788.6,7.3519]
[1743415204630,3.24061794,1788.9,1788.6,12.9987322]
[1743415204830,3.24061794,1788.9,1788.6,18.53363]
[1743415205131,3.24061794,1788.9,1788.6,12.9427]
[1743415205552,3.24061794,1788.9,1788.6,12.94269]
[1743415205845,3.0,1788.9,1788.6,12.94269]
[1743415206432,1.5095,1789.5,1788.8,1.5]
[1743415206632,5.5884,1789.5,1789.1,1.508]
[1743415206837,5.5884,1789.5,1789.1,12.7983]
[1743415207007,3.69287884,1789.6,1789.4,5.58835]
[1743415207205,7.15703,1789.8,1789.5,5.716]
[1743415207406,1.5697,1789.8,1789.5,5.716]
[1743415207606,3.0,1789.7,1789.5,5.716]
[1743415208011,7.15703,1789.8,1789.5,5.716]
[1743415208208,7.15703,1789.8,1789.5,7.561875]
[1743415208209,5.58755,1789.7,1789.5,7.561875]
[1743415208418,5.58755,1789.7,1789.5,5.716]
[1743415208945,16.43719884,1789.8,1789.5,5.716]
[1743415209547,10.84978884,1789.8,1789.5,5.716]
[1743415209750,7.15691,1789.8,1789.5,11.30414]
[1743415210067,1.98675862,1789.8,1789.5,5.716]
[1743415210271,7.57413862,1789.8,1789.5,5.716]
[1743415210467,7.57413862,1789.8,1789.5,11.30407]
[1743415210773,0.41705862,1789.8,1789.6,5.58783]
[1743415210993,10.23383,1789.9,1789.6,5.58783]
[1743415211849,4.6469,1789.9,1789.6,5.58772]
[1743415212251,10.23382,1789.9,1789.6,5.58772]
[1743415212469,10.23382,1789.9,1789.6,7.276902]
[1743415212672,5.5873,1789.8,1789.5,11.3041]
[1743415212836,10.23382,1789.9,1789.5,11.3041]
[1743415212837,15.82093,1789.9,1789.5,16.89208]
[1743415213037,3.0,1789.9,1789.7,5.58743]
[1743415213242,8.58649,1790.1,1789.7,5.58741]
[1743415213453,3.0,1789.9,1789.6,11.17568]
[1743415213742,3.0,1789.9,1789.7,1.117568]
[1743415213944,8.58691,1789.9,1789.5,11.85411]
[1743415214250,11.17464,1789.8,1789.5,5.716]
[1743415214465,5.5876,1789.7,1789.5,5.716]
[1743415214863,3.0,1789.7,1789.5,5.716]
[1743415215173,3.0,1789.7,1789.5,11.30413]
[1743415215364,3.0,1789.7,1789.5,5.716]
[1743415215752,3.0,1789.7,1789.5,11.30391]
[1743415215953,5.58784,1789.6,1789.5,5.716]
[1743415217472,5.5886,1789.4,1789.0,7.24463]
[1743415217670,5.58905,1789.3,1789.0,1.6552]
[1743415217870,5.58912,1789.2,1789.1,5.688]
[1743415218074,5.58912,1789.2,1789.0,1.6552]
[1743415218075,5.58953,1789.1,1788.7,7.14354]
[1743415218251,5.5898,1789.0,1788.9,5.69]
[1743415219461,8.5898,1789.0,1788.9,5.69]
[1743415219665,3.0,1789.0,1788.9,5.69]
[1743415220067,8.58971,1789.0,1788.9,5.69]
[1743415220965,3.0,1789.0,1788.9,5.69]
[1743415221275,3.0,1789.3,1789.0,1.5962]
[1743415221475,3.0,1789.3,1789.1,5.58929]
[1743415221677,5.58856,1789.4,1789.1,5.58929]
[1743415221678,8.58852,1789.4,1789.1,5.58929]
[1743415221980,0.41603454,1789.5,1789.3,5.58875]
[1743415222158,3.0,1789.5,1789.3,12.91686]
[1743415222476,11.17492,1789.8,1789.4,5.58835]
[1743415222685,11.17482,1789.8,1789.4,5.58835]
[1743415222853,3.0,1789.7,1789.4,11.17672]
[1743415223250,3.0,1789.7,1789.4,5.58835]
[1743415223450,14.17529,1789.7,1789.4,0.55]
[1743415223672,8.58754,1789.7,1789.4,0.55]
[1743415224070,8.58754,1789.7,1789.4,8.3180386]
[1743415224071,3.0,1789.7,1789.4,8.3180386]
[1743415224285,3.0,1789.7,1789.5,5.58807]
[1743415224484,11.17405,1789.9,1789.6,5.58768]
[1743415224700,3.69287884,1789.7,1789.3,10.069886]
[1743415224905,5.58839,1789.5,1789.3,5.683]
[1743415225350,8.58826,1789.5,1789.3,5.683]
[1743415225551,3.69287884,1789.7,1789.3,5.683]
[1743415225751,4.6142,1789.8,1789.3,5.683]
[1743415225752,3.0,1789.5,1789.3,5.683]
[1743415225962,3.0,1789.5,1789.3,11.27168]
[1743415226456,3.0,1789.5,1789.3,5.683]
[1743415226764,5.30707884,1789.8,1789.4,5.58832]
[1743415227083,6.4214441,1790.2,1789.5,0.05587689]
[1743415227084,12.74277,1790.1,1789.5,0.05587689]
[1743415227260,1.57,1790.1,1789.6,5.58778]
[1743415227467,5.58721,1789.9,1789.7,5.681]
[1743415227654,5.58721,1789.8,1789.7,5.681]
[1743415228085,5.58721,1789.9,1789.7,5.681]
[1743415228484,3.69287884,1790.0,1789.7,11.26836]
[1743415228686,14.86649884,1790.0,1789.7,5.681]
[1743415229079,13.15236022,1790.1,1789.7,5.681]
[1743415229402,5.5867,1790.0,1789.7,5.681]
[1743415229591,5.58701,1789.9,1789.7,5.681]
[1743415229991,5.5867,1790.0,1789.7,5.681]
[1743415230190,4.97948022,1790.1,1789.7,5.681]
[1743415230382,5.58721,1789.8,1789.7,5.681]
[1743415230778,11.43312613,1790.1,1789.8,5.58719]
[1743415230982,10.56589022,1790.1,1789.8,5.58718]
[1743415231187,10.56589022,1790.1,1789.8,5.5872]
[1743415231188,4.97948022,1790.1,1789.8,5.5872]
[1743415231478,5.58671,1790.0,1789.7,16.85565]
[1743415231684,16.15230022,1790.1,1789.7,16.85565]
[1743415231924,16.15230022,1790.1,1789.7,12.953805]
[1743415232070,16.15230022,1790.1,1789.7,18.541185]
[1743415232272,10.56589022,1790.1,1789.8,5.58719]
[1743415232806,16.15234022,1790.1,1789.8,5.58719]
[1743415233002,5.58703,1789.9,1789.7,5.681]
[1743415233171,9.27952884,1790.0,1789.7,5.681]
[1743415233503,5.58694,1789.9,1789.7,5.681]
[1743415233714,9.27952884,1790.0,1789.7,5.681]
[1743415234023,9.27952884,1790.0,1789.7,11.26852]
[1743415234201,9.27952884,1790.0,1789.7,5.681]
[1743415234401,1.97948022,1790.1,1789.7,6.807863]
[1743415234573,0.40948022,1790.1,1789.8,11.17414]
[1743415234776,11.17219,1790.2,1789.8,11.17414]
[1743415234992,11.17219,1790.2,1789.8,5.58707]
[1743415235301,3.0,1790.0,1789.8,5.58707]
[1743415235483,8.58662,1790.0,1789.7,12.395333]
[1743415235803,8.58662,1790.0,1789.7,5.58747]
[1743415236003,8.58662,1790.0,1789.8,5.676]
[1743415236200,3.0,1790.0,1789.8,11.26318]
[1743415236400,0.41563108,1790.1,1789.9,5.5868]
[1743415236594,3.0,1790.2,1789.9,5.5868]
[1743415236595,8.58601,1790.2,1789.9,5.5868]
[1743415237101,3.0,1790.3,1789.9,1.27786]
[1743415237399,3.0,1790.3,1790.0,11.17295]
[1743415237598,3.0,1790.3,1790.1,5.5862]
[1743415237805,3.0,1790.3,1790.0,5.58646]
[1743415238001,3.0,1790.3,1789.8,21.6918]
[1743415238002,3.0,1790.1,1789.8,12.779]
[1743415238201,3.0,1790.1,1789.9,5.58679]
[1743415238507,3.0,1790.1,1789.8,8.5247]
[1743415238675,3.0,1790.1,1789.9,5.58679]
[1743415238876,3.0,1790.3,1790.0,5.58637]
[1743415239075,1.5204,1790.5,1789.9,0.55]
[1743415239280,13.75795105,1790.5,1790.1,5.58597]
[1743415239487,3.0,1790.3,1790.2,5.676]
[1743415241904,5.17283105,1790.5,1790.2,5.676]
[1743415242105,3.0,1790.3,1790.2,5.676]
[1743415243114,3.0,1790.3,1789.7,5.676]
[1743415243115,1.6162,1790.2,1789.7,5.676]
[1743415243411,3.23617022,1789.9,1789.7,5.676]
[1743415243622,8.82325022,1789.9,1789.7,5.676]
[1743415243791,14.41031022,1789.9,1789.7,5.676]
[1743415243995,5.58766,1789.7,1789.3,5.58864]
[1743415244220,8.82383022,1789.7,1789.3,15.199284]
[1743415244409,8.82383022,1789.7,1789.4,5.58837]
[1743415244715,8.82383022,1789.7,1789.4,11.17668]
[1743415244716,3.65468135,1789.7,1789.4,11.17668]
[1743415244914,5.58695,1789.9,1789.6,7.10052]
[1743415244915,3.0,1789.9,1789.6,7.10052]
[1743415245117,8.58702,1789.9,1789.6,7.10052]
[1743415245518,8.58696,1789.9,1789.4,7.24647]
[1743415245687,3.0,1789.7,1789.5,5.58813]
[1743415245888,3.0,1789.7,1789.5,5.64400501]
[1743415246199,3.0,1789.9,1789.6,5.58755]
[1743415246412,3.0,1789.9,1789.4,7.24655]
[1743415246413,3.0,1789.9,1789.7,5.58733]
[1743415246799,3.0,1789.9,1789.6,5.58771]
[1743415246995,3.0,1789.9,1789.5,11.17616]
[1743415246996,9.01325317,1789.9,1789.5,11.17616]
[1743415247225,9.01325317,1789.9,1789.6,5.58767]
[1743415247797,3.42621317,1789.9,1789.6,11.17539]
[1743415248022,3.42621317,1789.9,1789.6,5.58767]
[1743415248224,3.42621317,1789.9,1789.6,11.17538]
[1743415248534,3.42621317,1789.9,1789.7,11.2635]
[1743415249031,9.01316317,1789.9,1789.7,5.676]
[1743415249231,14.60036317,1789.9,1789.7,5.676]
[1743415249416,5.58721,1789.8,1789.5,5.58811]
[1743415249620,10.36728022,1789.8,1789.6,5.676]
[1743415249928,3.0,1789.8,1789.6,16.85142]
[1743415250144,3.0,1789.8,1789.7,5.58752]
[1743415251009,1.613,1790.4,1789.7,1.6339]
[1743415251216,0.42033552,1790.4,1790.2,5.58577]
[1743415251422,3.0,1790.4,1790.2,5.58577]
[1743415251816,3.0,1790.4,1790.2,7.18192314]
[1743415252019,3.0,1790.4,1790.2,7.12607]
[1743415252515,3.0,1790.4,1790.2,1.5403]
[1743415252710,8.58548,1790.4,1790.1,5.676]
[1743415252920,3.0,1790.4,1790.2,5.58593]
[1743415253240,1.5769,1790.8,1790.5,5.58488]
[1743415253410,4.5769,1790.8,1790.5,5.58488]
[1743415253817,10.16101,1790.8,1790.5,5.58488]
[1743415254020,4.5769,1790.8,1790.6,5.58458]
[1743415254246,3.0,1790.8,1790.5,11.818368]
[1743415254544,3.0,1790.8,1790.5,11.818408]
[1743415254851,8.82072022,1790.7,1790.5,6.233488]
[1743415255038,14.40536022,1790.7,1790.5,5.675]
[1743415255406,3.23617022,1790.7,1790.5,5.675]
[1743415257116,10.09365,1791.2,1790.8,5.58385]
[1743415257322,10.09365,1791.2,1790.6,7.1497]
[1743415257323,1.5107,1791.2,1790.6,7.1497]
[1743415257618,3.0,1791.1,1790.9,5.58352]
[1743415257813,3.0,1791.1,1790.9,5.675]
[1743415258013,3.0,1791.1,1790.9,12.384671]
[1743415258215,3.0,1791.1,1790.9,14.016771]
[1743415258643,8.5832,1791.1,1790.9,8.433001]
[1743415258850,8.5832,1791.1,1790.9,7.3071]
[1743415259055,8.5832,1791.1,1790.9,5.675]
[1743415259261,5.58347,1791.0,1790.7,7.18685]
[1743415259546,14.40331022,1791.0,1790.8,5.674]
[1743415259755,14.40331022,1791.0,1790.3,15.77565]
[1743415259756,4.10411385,1791.0,1790.3,1.5018]
[1743415259917,4.10411385,1791.0,1790.7,5.58425]
[1743415259918,3.0,1790.9,1790.7,5.58425]
[1743415260118,10.09367,1791.1,1790.7,0.708605]
[1743415260420,3.0,1790.9,1790.6,5.674]
[1743415260621,3.0,1790.9,1790.7,5.58429]
[1743415260864,1.93141082,1791.1,1790.8,5.58409]
[1743415261022,13.09814082,1791.1,1790.7,5.64010821]
[1743415261222,7.51470082,1791.1,1790.7,11.16851]
[1743415261531,7.51470082,1791.1,1790.8,5.58397]
[1743415261532,6.00421082,1791.1,1790.8,5.58397]
[1743415261729,11.58763082,1791.1,1790.7,12.75027]
[1743415261925,8.58297,1791.2,1790.8,5.58391]
[1743415262142,3.0,1791.1,1790.8,5.58391]
[1743415262454,3.0,1791.2,1790.8,5.58409]
[1743415262751,3.0,1791.3,1791.0,5.58329]
[1743415262925,8.58263,1791.3,1791.0,5.58329]
[1743415263128,8.58263,1791.3,1790.7,7.71597]
[1743415263129,1.5108,1791.1,1790.7,1.5816]
[1743415263364,8.19506461,1791.1,1790.7,5.64005911]
[1743415263563,8.58371,1791.0,1790.6,11.25856]
[1743415263718,14.16746,1791.0,1790.6,11.25856]
[1743415264142,5.58385,1790.9,1790.6,5.674]
[1743415264335,5.58417,1790.8,1790.6,5.674]
[1743415264535,5.5844,1790.7,1790.6,5.674]
[1743415264820,3.68426461,1790.7,1790.2,5.58583]
[1743415265020,5.58519,1790.5,1790.4,5.673]
[1743415265326,5.58541,1790.4,1790.2,5.673]
[1743415265536,11.17095,1790.4,1790.2,5.673]
[1743415265742,3.0,1790.3,1790.2,5.673]
[1743415265935,8.58565,1790.3,1790.2,5.673]